[Event "12th National Amateur Chess-ch 2025"]
[Site "Bihar"]
[Date "2025.03.28"]
[Round "6.6"]
[White "Ayushman Mohanty"]
[Black "Pradeep Tiwari"]
[Result "0-1"]
[Annotator "TA"]
[ECO "B33"]
[WhiteElo "1827"]
[BlackElo "1979"]
[PlyCount "160"]
[EventDate "2025.03.25"]
[EventCountry "IND"]
[SourceTitle "playchess.com"]
[Source "ChessBase"]
[SourceQuality "1"]
[TimeControl "5400+30"]

{[%evp 21,159,81,86,83,143,136,134,108,101,109,129,117,129,126,129,131,188,185,203,143,159,115,127,102,130,116,121,77,123,82,143,141,141,135,133,148,162,156,201,178,147,70,170,74,69,28,49,39,74,35,37,19,16,16,29,0,0,-37,0,-541,-530,-577,-570,-570,-569,-562,-562,-829,-787,-808,-812,-1000,-964,-5728,-5397,-29966,-29954,-3011,-913,-1029,0,-6323,0,-5908,-6115,-29982,-29983,-29983,-29984,-29984,-29985,-29984,-29985,-29986,-29986,-29986,-29987,-29987,-29987,-29989,-29990,-29990,-29991,-29991,-29992,-29992,-29991,-29992,-29990,-29990,-29991,-29991,-29992,-29992,-29992,-29992,-29993,-29993,-29994,-29994,-29995,-29996,-29995,-29995,-29996,-29997,-29996,-29997,-29996,-29996,-29997,-29997,-29997,-29997,-29997,-29997,-29998,-29998,-29999,-29999]} 1. e4 {[%emt 0:00:32]} c5 {[%emt 0:00:06]} 2. Nf3 {[%emt 0:00:00][%cal Bg1f3,Bf3d4,Bd4b5,Bb5a3,Ba3c2,Bc2e3][%mdl 32]} Nc6 {[%emt 0:00:03]} 3. d4 {[%emt 0:00:02]} cxd4 {[%emt 0:00:04]} 4. Nxd4 {[%emt 0:00:04]} Nf6 {[%emt 0:01:22]} 5. Nc3 {[%emt 0:00:05]} e5 {[%emt 0:00:13]} 6. Ndb5 {[%emt 0:00:06]} d6 {[%emt 0:00:05]} 7. Bg5 {[%emt 0:00:05]} a6 {[%emt 0:00:05]} 8. Bxf6 {[%emt 0:00:06]} gxf6 {[%emt 0:00:08]} 9. Na3 {[%emt 0:00:04]} b5 {[%emt 0:00:08]} 10. Nd5 {[%emt 0:00:06]} Be6 {[%emt 0:02:18]} 11. c3 {[%emt 0:01:05]} Bg7 {[%emt 0:00:28]} 12. Nc2 {[%emt 0:01:37] B33: Sicilian: Pelikan and Sveshnikov Variations.} O-O {[%emt 0:01:57]} (12... Bxd5 $142 13. Qxd5 Ne7) 13. Nce3 $16 {[%emt 0:01:05][%csl Od5] Strong Square White (d5) A dynamic duo of knights.} Ne7 {[%emt 0:00:43]} 14. Nxe7+ {[%emt 0:11:18] White is clearly better.} Qxe7 {[%emt 0:00:13]} 15. Bd3 {[%emt 0:00:06]} Kh8 {[%emt 0:02:07]} 16. Qh5 {[%emt 0:09:22] Prevents Bh6.} Rg8 {[%emt 0:01:50]} 17. O-O {[%emt 0:00:13]} Bf8 {[%emt 0:01:46]} 18. a4 {[%emt 0:11:38]} bxa4 $146 {[%emt 0:01:50]} (18... Qb7 $16 {was worth a try.} 19. axb5 axb5 20. Rxa8 Qxa8) (18... Rg5 19. Qf3 Rb8 20. axb5 axb5 21. b4 Rg6 22. Ra5 Qe8 23. Qe2 Bd7 24. Rfa1 Bh6 {1-0 Preotu,R (2356)-Wang,E (1886) Aurora Spring op 2014 (4.2)}) 19. Rxa4 $18 {[%emt 0:00:12][%cal Ba1a4,Ba4b4,Bb4b6][%mdl 32]} Qb7 {[%emt 0:02:27]} 20. Rb4 {[%emt 0:08:15]} Qc6 {[%emt 0:05:04]} 21. Nd5 {[%emt 0:09:57]} Rg6 {[%emt 0:01:56][%cal Oe6g4]} 22. Qf3 {[%emt 0:08:13]} a5 {[%emt 0:01:21]} 23. Rb6 {[%emt 0:04:53]} Qc8 {[%emt 0:03:56]} 24. Kh1 {[%emt 0:00:43]} (24. Nxf6 $2 Qd8 25. Rc6 Rxf6 $19 (25... Qxf6 $2 26. Qxf6+ Rxf6 27. Rb1 $19)) 24... Qd8 {[%emt 0:01:38]} (24... Bg4 $142 25. Qe3 Bh6) 25. Rb3 {[%emt 0:03:02]} Rb8 {[%emt 0:04:26]} (25... Bg4 $142 26. Qe3 Be6) 26. Rxb8 $16 {[%emt 0:00:36]} Qxb8 {[%emt 0:00:04]} 27. b4 {[%emt 0:00:32]} (27. Nxf6 $6 Qxb2 28. Nd5 a4 $11) 27... axb4 {[%emt 0:00:08]} 28. cxb4 {[%emt 0:00:25]} (28. Nxf6 Bh6 (28... bxc3 29. Rb1 $15) 29. cxb4 Bf4 $15) 28... Bg4 {[%emt 0:02:58]} 29. Qe3 {[%emt 0:00:22]} Be6 {[%emt 0:03:16]} 30. b5 {[%emt 0:02:24]} Bh6 {[%emt 0:04:45]} 31. Qb6 {[%emt 0:01:45]} ({White should try} 31. Qe1 $16) 31... Rg8 {[%emt 0:01:50] [#]} ({Better is} 31... Qxb6 $14 32. Nxb6 Rg8) 32. Qxb8 {[%emt 0:07:29]} (32. Qa6 $1 $18 {and White stays clearly on top.}) 32... Rxb8 {[%emt 0:00:21]} 33. Ne7 {[%emt 0:01:02]} Bf8 {[%emt 0:03:22]} 34. Nc6 {[%emt 0:00:54]} Rc8 {[%emt 0:00:22]} 35. Rb1 {[%emt 0:03:00][%cal Ob5b6]} d5 {[%emt 0:00:10]} 36. f3 {[%emt 0:03:30]} (36. exd5 $5 Bxd5 37. Rc1 $16) 36... d4 {[%emt 0:01:16]} 37. Kg1 {[%emt 0:00:30]} Bd7 {[%emt 0:00:59]} 38. Na5 {[%emt 0:02:56]} Rc3 {[%emt 0:01:42]} 39. Rb3 {[%emt 0:00:05]} (39. Be2 $5) 39... Bc5 {[%emt 0:00:38]} 40. Kf2 $2 {[%emt 0:02:16][%mdl 8192]} (40. Rxc3 $11 {and White has nothing to worry.} dxc3+ 41. Kf1) 40... Bb6 $19 {[%emt 0:00:59]} 41. Nc4 {[%emt 0:01:36] Threatens to win with Rxc3.} Rxb3 {[%emt 0:00:11]} 42. Nxb6 {[%emt 0:00:07]} Bxb5 {[%emt 0:00:14]} 43. Bxb5 {[%emt 0:00:28]} Rxb5 {[%emt 0:00:04][%mdl 4096] Endgame KR-KN} 44. Nd5 {[%emt 0:00:11]} Rb2+ {[%emt 0:00:08]} 45. Kf1 {[%emt 0:00:04]} Kg7 {[%emt 0:00:05]} 46. f4 {[%emt 0:00:14]} h5 {[%emt 0:00:38] ...d3 would now be deadly.} 47. f5 {[%emt 0:00:08]} h4 {[%emt 0:00:06]} 48. h3 {[%emt 0:00:04]} Rc2 {[%emt 0:00:31]} 49. Nb4 {[%emt 0:00:09]} Rc3 {[%emt 0:00:11]} (49... Rd2 $142 50. Na6 Kh6) 50. Nd5 {[%emt 0:00:03]} Rc2 {[%emt 0:00:37]} (50... Rc6 $142 51. Ke2 Kh6) 51. Nb4 $1 {[%emt 0:00:14]} Rb2 {[%emt 0:00:09]} 52. Nd5 {[%emt 0:00:22]} d3 {[%emt 0:00:03] ( -> ...Rb1+)} 53. Ne3 {[%emt 0:00:07]} Re2 {[%emt 0:00:08] Black mates.} 54. Nd1 {[%emt 0:00:16]} Rxe4 {[%emt 0:00:06]} 55. Nc3 {[%emt 0:00:08]} Rc4 {[%emt 0:00:15]} 56. Nd1 {[%emt 0:00:03]} Rc1 {[%emt 0:00:06]} 57. Ke1 {[%emt 0:00:03]} e4 {[%emt 0:00:07]} 58. Kd2 {[%emt 0:00:06] [#]} Rxd1+ $1 {[%emt 0:00:08]} 59. Kxd1 {[%emt 0:00:04] KP-KP. Black is two pawns up.} e3 {[%emt 0:00:03]} 60. Ke1 {[%emt 0:00:04]} Kh6 {[%emt 0:00:05]} 61. Kd1 {[%emt 0:00:07]} Kg5 {[%emt 0:00:15]} 62. Ke1 {[%emt 0:00:04]} Kxf5 {[%emt 0:00:04]} 63. Kd1 {[%emt 0:00:02]} Kf4 {[%emt 0:00:06]} 64. Ke1 {[%emt 0:00:04]} Kg3 {[%emt 0:00:02]} 65. Kf1 {[%emt 0:00:03]} f5 {[%emt 0:00:04]} 66. Ke1 {[%emt 0:00:03]} Kxg2 {[%emt 0:00:08]} 67. Kd1 {[%emt 0:00:02]} f4 {[%emt 0:00:06]} 68. Kc1 {[%emt 0:00:09]} f3 {[%emt 0:00:04]} 69. Kb2 {[%emt 0:00:02]} e2 {[%emt 0:00:05]} 70. Kc3 {[%emt 0:00:06]} e1=Q+ {[%emt 0:00:06]} 71. Kxd3 {[%emt 0:00:03]} Qe2+ {[%emt 0:00:09]} 72. Kd4 {[%emt 0:00:03]} f2 {[%emt 0:00:04]} 73. Kc3 {[%emt 0:00:10]} f1=R {[%emt 0:00:09]} 74. Kd4 {[%emt 0:00:07]} Rd1+ {[%emt 0:01:01]} 75. Kc3 {[%emt 0:00:28]} Qd3+ {[%emt 0:00:11]} 76. Kb4 {[%emt 0:00:04]} Rb1+ {[%emt 0:00:08]} 77. Kc5 {[%emt 0:00:03]} Rb5+ {[%emt 0:00:06]} 78. Kc6 {[%emt 0:00:02]} Qd5+ {[%emt 0:00:04]} 79. Kc7 {[%emt 0:00:02]} Rb7+ {[%emt 0:00:07]} 80. Kc8 {[%emt 0:00:03]} Qd7# {[%emt 0:00:03] Black used his chance.   Weighted Error Value: White=0.80/Black=0.19 (very precise)   Loses game:     	White=1     	---        Mistake:       	White=2     	Black=5      Inaccurate:     	White=8     	Black=2      OK:         	White=12    	Black=9      Best:        	White=1     	Black=3} 0-1

[Event "12th National Amateur Chess-ch 2025"]
[Site "Bihar"]
[Date "2025.03.28"]
[Round "6.7"]
[White "Ebenezer, Joseph"]
[Black "Piyush Kumar"]
[Result "1/2-1/2"]
[Annotator "TA"]
[ECO "B26"]
[WhiteElo "1961"]
[BlackElo "1836"]
[PlyCount "63"]
[EventDate "2025.03.25"]
[EventCountry "IND"]
[SourceTitle "playchess.com"]
[Source "ChessBase"]
[SourceQuality "1"]
[TimeControl "5400+30"]

{[%evp 12,63,9,-2,9,1,16,-17,-20,-41,-6,-15,-18,-16,0,-4,15,10,49,20,37,0,0,0,20,26,39,32,75,66,79,69,127,130,129,128,128,132,126,135,157,72,105,28,40,41,36,31,50,7,34,0,0,5]} 1. e4 {[%emt 0:00:28]} c5 {[%emt 0:06:27]} 2. Nc3 {[%emt 0:00:15]} Nc6 {[%emt 0:00:07]} 3. g3 {[%emt 0:00:12]} g6 {[%emt 0:00:09]} 4. Bg2 {[%emt 0:00:05]} Bg7 {[%emt 0:00:07]} 5. d3 {[%emt 0:00:05]} Rb8 {[%emt 0:00:09]} 6. a4 {[%emt 0:00:27]} d6 {[%emt 0:00:22]} 7. Be3 {[%emt 0:00:40]} e6 {[%emt 0:03:42] B26: Closed Sicilian: 3 g3, lines with early Be3.} 8. Nf3 {[%emt 0:06:07]} Nd4 {[%emt 0:00:28]} 9. Nh4 $146 {[%emt 0:05:03]} (9. O-O Ne7 10. Rb1 O-O 11. Ne2 e5 12. c3 Nxf3+ 13. Bxf3 b6 14. Bg2 d5 15. c4 dxc4 16. dxc4 {0-1 Mueschenich,S (2082)-Odendahl,R (2273) NRW Class1 1415 2014 (6.1)}) 9... Ne7 {[%emt 0:04:36]} 10. Nb1 {[%emt 0:00:19]} Qb6 {[%emt 0:17:21]} 11. Ra2 {[%emt 0:00:10]} O-O {[%emt 0:00:34]} 12. c3 {[%emt 0:00:27]} Ndc6 {[%emt 0:00:06]} 13. b4 {[%emt 0:10:07]} Qc7 {[%emt 0:05:00]} 14. bxc5 {[%emt 0:04:10]} dxc5 {[%emt 0:00:01]} 15. Bxc5 {[%emt 0:08:15]} b6 {[%emt 0:00:20]} 16. Bxe7 {[%emt 0:06:31]} Qxe7 {[%emt 0:01:13]} 17. O-O {[%emt 0:00:25]} Rd8 {[%emt 0:00:25]} 18. d4 {[%emt 0:01:20]} Bb7 {[%emt 0:03:50]} 19. Qe2 {[%emt 0:04:01]} Rbc8 {[%emt 0:00:22]} 20. e5 {[%emt 0:02:49]} Rc7 {[%emt 0:01:58]} 21. f4 {[%emt 0:04:58]} Na5 {[%emt 0:02:42]} (21... Qd7 $14) 22. Bxb7 $16 {[%emt 0:00:23]} Nxb7 {[%emt 0:00:25]} 23. Nf3 {[%emt 0:01:53]} Na5 {[%emt 0:01:35][%cal Bb7a5,Ba5c4,Bc4d2][%mdl 32]} 24. Nfd2 {[%emt 0:00:37]} Qd7 {[%emt 0:00:54]} 25. Ne4 {[%emt 0:11:02]} Qd5 {[%emt 0:00:57]} 26. Rb2 {[%emt 0:02:45]} (26. Na3 $142) 26... Nc4 {[%emt 0:02:55]} 27. Rb5 {[%emt 0:00:41]} (27. Rc2 $16) 27... Qc6 $11 {[%emt 0:00:21]} 28. Ned2 {[%emt 0:10:42]} Nxd2 {[%emt 0:16:31]} 29. Qxd2 {[%emt 0:00:03]} Bf8 {[%emt 0:00:22]} 30. Qa2 {[%emt 0:03:32]} Qe4 {[%emt 0:05:00][%cal Od8d4] [#] Threatens to win with ...Rxd4!.} 31. Qd2 {[%emt 0:05:34]} Rc4 {[%emt 0:04:33]} 32. Qg2 {[%emt 0:08:37] Weighted Error Value: White=0.19 (very precise) /Black=0.15 (very precise)   Mistake:       	White=2     	Black=1      Inaccurate:     	White=5     	Black=5      OK:         	White=9     	Black=5      Best:        	---       	Black=1} 1/2-1/2

[Event "12th National Amateur Chess-ch 2025"]
[Site "Bihar"]
[Date "2025.03.28"]
[Round "6.8"]
[White "Ranjith, R.k."]
[Black "Aman Balana"]
[Result "0-1"]
[Annotator "NA RC"]
[ECO "A00"]
[WhiteElo "1844"]
[BlackElo "1827"]
[PlyCount "124"]
[EventDate "2025.03.25"]
[EventCountry "IND"]
[SourceTitle "playchess.com"]
[Source "ChessBase"]
[SourceQuality "1"]
[TimeControl "5400+30"]

1. Nc3 {[%emt 0:07:16]} d5 {[%emt 0:00:40]} 2. e4 {[%emt 0:00:10]} d4 {[%emt 0:00:10]} 3. Nce2 {[%emt 0:00:01]} e5 {[%emt 0:00:13]} 4. Ng3 {[%emt 0:00:09]} Be6 {[%emt 0:00:10]} 5. Nf3 {[%emt 0:00:47]} f6 {[%emt 0:00:13]} 6. Bb5+ {[%emt 0:02:09]} c6 {[%emt 0:00:08]} 7. Ba4 {[%emt 0:00:15]} Na6 {[%emt 0:00:11]} 8. Bb3 {[%emt 0:00:19]} Nc5 {[%emt 0:03:11]} 9. d3 {[%emt 0:01:21]} Qd7 {[%emt 0:04:04]} 10. O-O {[%emt 0:04:55]} h5 {[%emt 0:03:16]} 11. Nh4 {[%emt 0:00:48]} Nxb3 {[%emt 0:15:04]} 12. axb3 {[%emt 0:00:07]} Bc5 {[%emt 0:08:55]} 13. Ng6 {[%emt 0:11:27]} Rh7 {[%emt 0:02:03]} 14. f4 {[%emt 0:00:36]} h4 {[%emt 0:03:53]} 15. Nh1 {[%emt 0:00:30]} Bf7 {[%emt 0:06:55]} 16. f5 {[%emt 0:01:07]} Ne7 {[%emt 0:00:51]} 17. Nxe7 {[%emt 0:01:53]} Qxe7 {[%emt 0:00:32]} 18. Qg4 {[%emt 0:08:17]} O-O-O {[%emt 0:02:36]} 19. b4 {[%emt 0:01:29]} Bb6 {[%emt 0:00:47]} 20. Bd2 {[%emt 0:00:08]} Kb8 {[%emt 0:02:00]} 21. Nf2 {[%emt 0:00:17]} Rg8 {[%emt 0:04:24]} 22. Qh3 {[%emt 0:02:15]} g6 {[%emt 0:10:47]} 23. fxg6 {[%emt 0:05:27]} Rxg6 {[%emt 0:06:28]} 24. Kh1 {[%emt 0:01:34]} Be6 {[%emt 0:06:05]} 25. Qf3 {[%emt 0:00:28]} Rhg7 {[%emt 0:01:30]} 26. Rg1 {[%emt 0:00:24]} Qd7 {[%emt 0:02:40]} 27. Qe2 {[%emt 0:13:57]} Qe8 {[%emt 0:01:28]} 28. Raf1 {[%emt 0:13:03]} Qg8 {[%emt 0:00:27]} 29. Qf3 {[%emt 0:00:32]} Bd8 {[%emt 0:01:58]} 30. Be1 {[%emt 0:04:15]} Qh7 {[%emt 0:04:24]} 31. Nh3 {[%emt 0:11:24]} Bg4 {[%emt 0:01:17]} 32. Qf2 {[%emt 0:00:02]} Qg8 {[%emt 0:05:20]} 33. Bd2 {[%emt 0:03:07]} Be7 {[%emt 0:01:32]} 34. c3 {[%emt 0:00:00]} dxc3 {[%emt 0:00:56]} 35. bxc3 {[%emt 0:00:00]} Qd8 {[%emt 0:01:10]} 36. Qe3 {[%emt 0:02:15]} Bd6 {[%emt 0:00:14]} 37. Ra1 {[%emt 0:00:39]} a6 {[%emt 0:00:36]} 38. Nf2 {[%emt 0:00:34]} Bc7 {[%emt 0:01:09]} 39. Nxg4 {[%emt 0:02:06]} Bb6 {[%emt 0:00:20]} 40. Qf3 {[%emt 0:02:22]} Bxg1 {[%emt 0:00:17]} 41. h3 {[%emt 0:01:33]} Bb6 {[%emt 0:00:01]} 42. Be3 {[%emt 0:00:16]} Rd7 {[%emt 0:01:51]} 43. Qf5 {[%emt 0:00:29]} Rgg7 {[%emt 0:00:36]} 44. Bxb6 {[%emt 0:00:32]} Qxb6 {[%emt 0:00:01]} 45. Nxf6 {[%emt 0:00:09]} Rxd3 {[%emt 0:00:52]} 46. Qxe5+ {[%emt 0:00:02]} Qc7 {[%emt 0:00:26]} 47. Qxc7+ {[%emt 0:00:55]} Rxc7 {[%emt 0:00:05]} 48. Re1 {[%emt 0:00:17]} Rxc3 {[%emt 0:00:54]} 49. e5 {[%emt 0:00:04]} Re7 {[%emt 0:00:24]} 50. e6 {[%emt 0:00:14]} Rg3 {[%emt 0:00:52]} 51. Nd7+ {[%emt 0:00:40]} Kc7 {[%emt 0:00:16]} 52. Nc5 {[%emt 0:00:03]} b6 {[%emt 0:00:43]} 53. Nxa6+ {[%emt 0:00:29]} Kb7 {[%emt 0:00:00]} 54. b5 {[%emt 0:00:01]} cxb5 {[%emt 0:00:38]} 55. Nb4 {[%emt 0:00:01]} Rg6 {[%emt 0:00:22]} 56. Re4 {[%emt 0:00:19]} Rgxe6 {[%emt 0:00:11]} 57. Rxh4 {[%emt 0:00:08]} Re4 {[%emt 0:00:10]} 58. Rxe4 {[%emt 0:00:05]} Rxe4 {[%emt 0:00:01]} 59. Nd5 {[%emt 0:00:16]} b4 {[%emt 0:00:17]} 60. g4 {[%emt 0:00:14]} Rd4 {[%emt 0:00:39]} 61. Nxb4 {[%emt 0:01:01]} Rxb4 {[%emt 0:00:01]} 62. g5 {[%emt 0:00:09]} Rh4 {[%emt 0:01:00]} 0-1

[Event "12th National Amateur Chess-ch 2025"]
[Site "Bihar"]
[Date "2025.03.28"]
[Round "6.9"]
[White "Jaikishan Jaiswal"]
[Black "Gadge Vedant"]
[Result "0-1"]
[Annotator "NA RC"]
[ECO "B99"]
[WhiteElo "1616"]
[BlackElo "1667"]
[PlyCount "111"]
[EventDate "2025.03.25"]
[EventCountry "IND"]
[SourceTitle "playchess.com"]
[Source "ChessBase"]
[SourceQuality "1"]
[TimeControl "5400+30"]

1. e4 {[%emt 0:02:57]} c5 {[%emt 0:01:10]} 2. Nf3 {[%emt 0:00:00]} d6 {[%emt 0:02:34]} 3. d4 {[%emt 0:00:05]} cxd4 4. Nxd4 {[%emt 0:00:00]} Nf6 {[%emt 0:00:15]} 5. Nc3 {[%emt 0:00:08]} a6 {[%emt 0:00:10]} 6. Bg5 {[%emt 0:00:09]} e6 {[%emt 0:00:08]} 7. f4 {[%emt 0:00:09]} Be7 {[%emt 0:00:08]} 8. Qf3 {[%emt 0:00:00]} Qc7 {[%emt 0:00:55]} 9. Bd3 {[%emt 0:00:00]} Nbd7 {[%emt 0:00:00]} 10. O-O-O {[%emt 0:00:00]} b5 {[%emt 0:00:00]} 11. Rhe1 {[%emt 0:00:00]} Bb7 {[%emt 0:00:07]} 12. Qh3 {[%emt 0:00:00]} Nc5 {[%emt 0:13:35]} 13. e5 {[%emt 0:14:31]} dxe5 {[%emt 0:00:00]} 14. fxe5 {[%emt 0:07:45]} Nd5 {[%emt 0:05:42]} 15. Bxe7 {[%emt 0:05:37]} Qxe7 {[%emt 0:00:00]} 16. Ne4 Nf4 {[%emt 0:16:08]} 17. Qg3 {[%emt 0:00:59]} Nfxd3+ {[%emt 0:00:00]} 18. cxd3 Nxe4 {[%emt 0:05:00]} 19. dxe4 {[%emt 0:21:31]} O-O {[%emt 0:00:00]} 20. Kb1 {[%emt 0:01:08]} Rfd8 {[%emt 0:00:00]} 21. Qa3 {[%emt 0:16:47]} Qxa3 {[%emt 0:00:00]} 22. bxa3 {[%emt 0:00:05]} Kf8 {[%emt 0:00:00]} 23. Kb2 {[%emt 0:01:20]} Ke7 {[%emt 0:00:00]} 24. g3 {[%emt 0:00:47]} Rd7 {[%emt 0:03:52]} 25. Nb3 {[%emt 0:00:46]} Rxd1 {[%emt 0:00:00]} 26. Rxd1 {[%emt 0:02:44]} Rc8 {[%emt 0:03:01]} 27. Rd4 {[%emt 0:02:40]} Rd8 {[%emt 0:00:00]} 28. Rxd8 {[%emt 0:01:18]} Kxd8 {[%emt 0:00:00]} 29. Kc3 {[%emt 0:00:52]} Bxe4 {[%emt 0:00:00]} 30. Nc5 {[%emt 0:00:15]} Bc6 {[%emt 0:00:00]} 31. Nxa6 {[%emt 0:00:10]} f6 {[%emt 0:00:00]} 32. Kd4 {[%emt 0:00:56]} f5 {[%emt 0:05:35]} 33. Nc5 {[%emt 0:04:32]} Ke7 {[%emt 0:00:00]} 34. Nd3 {[%emt 0:00:17]} g5 {[%emt 0:00:00]} 35. Kc5 {[%emt 0:00:35]} Be8 {[%emt 0:00:55]} 36. Kd4 {[%emt 0:00:46]} Kf7 {[%emt 0:03:42]} 37. Nc5 {[%emt 0:00:24]} Bc6 {[%emt 0:00:00]} 38. Ke3 {[%emt 0:00:21]} Bd5 {[%emt 0:00:00]} 39. Nb3 {[%emt 0:08:25]} Kg6 {[%emt 0:00:40]} 40. Nd4 {[%emt 0:02:07]} Bc4 {[%emt 0:00:00]} 41. Kf3 {[%emt 0:01:24]} Kh5 {[%emt 0:00:00]} 42. h3 {[%emt 0:00:30]} h6 {[%emt 0:00:00]} 43. Ke3 {[%emt 0:01:39]} Kg6 {[%emt 0:00:00]} 44. Nb3 {[%emt 0:01:01]} Kf7 {[%emt 0:00:00]} 45. Kd4 {[%emt 0:00:52]} Bf1 {[%emt 0:00:00]} 46. h4 {[%emt 0:00:40]} Bc4 {[%emt 0:04:51]} 47. Ke3 {[%emt 0:00:22]} Bxb3 {[%emt 0:00:50]} 48. axb3 {[%emt 0:00:01]} Ke7 {[%emt 0:06:10]} 49. hxg5 {[%emt 0:06:36]} hxg5 {[%emt 0:00:00]} 50. Kd4 {[%emt 0:00:03]} g4 {[%emt 0:00:00]} 51. Kd3 {[%emt 0:00:45]} Kd7 {[%emt 0:00:00]} 52. Ke3 {[%emt 0:00:17]} Kc6 {[%emt 0:00:22]} 53. Kd4 {[%emt 0:00:20]} Kb6 {[%emt 0:00:00]} 54. Kd3 {[%emt 0:00:10]} Kc5 {[%emt 0:00:46]} 55. Ke3 {[%emt 0:01:05]} Kd5 {[%emt 0:01:01]} 56. Kf4 {[%emt 0:00:53]} 0-1

[Event "12th National Amateur Chess-ch 2025"]
[Site "Bihar"]
[Date "2025.03.28"]
[Round "6.10"]
[White "Avyay Sharma"]
[Black "Bala Ganesan"]
[Result "1-0"]
[Annotator "NA RC"]
[ECO "C01"]
[WhiteElo "1586"]
[BlackElo "1656"]
[PlyCount "51"]
[EventDate "2025.03.25"]
[EventCountry "IND"]
[SourceTitle "playchess.com"]
[Source "ChessBase"]
[SourceQuality "1"]
[TimeControl "5400+30"]

1. e4 {[%emt 0:00:02]} e6 {[%emt 0:01:51]} 2. d4 {[%emt 0:00:07]} d5 {[%emt 0:00:05]} 3. exd5 {[%emt 0:00:04]} exd5 {[%emt 0:00:07]} 4. c4 {[%emt 0:00:09]} Nf6 {[%emt 0:01:20]} 5. Nc3 {[%emt 0:00:09]} c6 {[%emt 0:02:58]} 6. h3 {[%emt 0:00:23]} Bb4 {[%emt 0:00:14]} 7. Bd3 {[%emt 0:00:31]} O-O {[%emt 0:00:11]} 8. Be3 {[%emt 0:00:10]} Re8 {[%emt 0:00:42]} 9. Nge2 {[%emt 0:00:24]} dxc4 {[%emt 0:04:32]} 10. Bxc4 {[%emt 0:00:10]} Nd5 {[%emt 0:01:50]} 11. O-O {[%emt 0:00:28]} Nxe3 {[%emt 0:04:37]} 12. fxe3 {[%emt 0:00:18]} Rxe3 {[%emt 0:03:58]} 13. Rxf7 {[%emt 0:00:24]} Kh8 {[%emt 0:00:29]} 14. Nf4 {[%emt 0:01:00]} b5 {[%emt 0:05:52]} 15. Bb3 {[%emt 0:00:42]} Re7 {[%emt 0:08:18]} 16. Rxe7 {[%emt 0:05:33]} Bxe7 {[%emt 0:03:38]} 17. Qd3 {[%emt 0:01:43]} Qd6 {[%emt 0:08:14]} 18. Rf1 {[%emt 0:02:04]} Bf6 {[%emt 0:06:03]} 19. Kh1 {[%emt 0:02:19]} Nd7 {[%emt 0:02:38]} 20. Ng6+ {[%emt 0:01:05]} hxg6 {[%emt 0:01:39]} 21. Qxg6 {[%emt 0:00:07]} Be7 {[%emt 0:00:42]} 22. Qf7 {[%emt 0:01:10]} Bb7 {[%emt 0:06:57]} 23. Ne4 {[%emt 0:01:16]} Rf8 {[%emt 0:15:44]} 24. Nxd6 {[%emt 0:00:09]} Rxf7 {[%emt 0:00:19]} 25. Rxf7 {[%emt 0:00:22]} Bxd6 {[%emt 0:05:56]} 26. Rxd7 {[%emt 0:00:23]} 1-0

[Event "12th National Amateur Chess-ch 2025"]
[Site "Bihar"]
[Date "2025.03.28"]
[Round "6.11"]
[White "Devansh Keshri"]
[Black "Pathak Anshu Kr"]
[Result "1-0"]
[Annotator "NA RC"]
[ECO "C01"]
[WhiteElo "1633"]
[BlackElo "1585"]
[PlyCount "73"]
[EventDate "2025.03.25"]
[EventCountry "IND"]
[SourceTitle "playchess.com"]
[Source "ChessBase"]
[SourceQuality "1"]
[TimeControl "5400+30"]

1. e4 {[%emt 0:00:03]} e6 {[%emt 0:00:28]} 2. d4 {[%emt 0:00:11]} d5 {[%emt 0:00:04]} 3. exd5 {[%emt 0:00:07]} exd5 {[%emt 0:00:05]} 4. Bd3 {[%emt 0:00:18]} Nc6 {[%emt 0:00:46]} 5. c3 {[%emt 0:00:08]} Bd6 {[%emt 0:00:52]} 6. Nf3 {[%emt 0:01:08]} Nge7 {[%emt 0:00:47]} 7. h3 {[%emt 0:03:13]} Be6 {[%emt 0:17:21]} 8. O-O {[%emt 0:03:27]} Qd7 {[%emt 0:05:58]} 9. Ng5 {[%emt 0:05:26]} Bf5 {[%emt 0:02:45]} 10. Re1 {[%emt 0:13:17]} Bxd3 {[%emt 0:02:22]} 11. Qxd3 {[%emt 0:00:11]} h6 {[%emt 0:00:50]} 12. Nf3 {[%emt 0:01:07]} O-O-O {[%emt 0:06:51]} 13. Nbd2 {[%emt 0:03:12]} g5 {[%emt 0:04:08]} 14. Ne5 {[%emt 0:06:24]} Bxe5 {[%emt 0:01:56]} 15. dxe5 {[%emt 0:00:13]} Rde8 {[%emt 0:04:19]} 16. Nb3 {[%emt 0:02:31]} Ng6 {[%emt 0:07:03]} 17. e6 {[%emt 0:11:09]} Rxe6 {[%emt 0:01:44]} 18. Rd1 {[%emt 0:00:51]} b6 {[%emt 0:08:32]} 19. Be3 {[%emt 0:01:29]} Rd8 {[%emt 0:04:18]} 20. Qa6+ {[%emt 0:03:44]} Kb8 {[%emt 0:00:06]} 21. a4 {[%emt 0:02:02]} Nge5 {[%emt 0:15:18]} 22. Nd2 {[%emt 0:14:07]} Qc8 {[%emt 0:01:21]} 23. Qb5 {[%emt 0:04:15]} d4 {[%emt 0:01:50]} 24. cxd4 {[%emt 0:00:30]} Nxd4 {[%emt 0:00:12]} 25. Bxd4 {[%emt 0:00:34]} Rxd4 {[%emt 0:00:16]} 26. Nb3 {[%emt 0:00:38]} Rxd1+ {[%emt 0:01:50]} 27. Rxd1 {[%emt 0:00:04]} a6 {[%emt 0:00:35]} 28. Qb4 {[%emt 0:00:44]} Nc6 {[%emt 0:01:34]} 29. Qc3 {[%emt 0:00:39]} Qe8 {[%emt 0:01:23]} 30. a5 {[%emt 0:01:09]} Kb7 {[%emt 0:04:15]} 31. Rc1 {[%emt 0:01:48]} Qe7 {[%emt 0:00:33]} 32. axb6 {[%emt 0:05:28]} cxb6 {[%emt 0:00:10]} 33. Nd4 {[%emt 0:00:20]} Nxd4 {[%emt 0:02:31]} 34. Qc8+ {[%emt 0:00:06]} Ka7 {[%emt 0:00:07]} 35. Rc7+ {[%emt 0:00:06]} Qxc7 {[%emt 0:00:02]} 36. Qxc7+ {[%emt 0:00:05]} Ka8 {[%emt 0:00:03]} 37. Qd8+ {[%emt 0:00:37]} 1-0